fUST/lending_fUST_20240919
["ID","MTS","AMOUNT","RATE_DAILY","PERIOD"]
[338495036,1726702975460,500.0,0.00014013,2]
[338495037,1726702989588,500.0,0.00014013,2]
[338495039,1726703000894,500.0,0.00014013,2]
[338495040,1726703022190,500.0,0.00014013,2]
[338495042,1726703038404,153.0,0.00014013,2]
[338495095,1726703431884,-499.813917,0.00017808,2]
[338495096,1726703431897,-300.0,0.00017919,2]
[338495097,1726703431907,-300.0,0.00017919,2]
[338495098,1726703431919,-8900.186083,0.0001792,2]
[338495099,1726703432956,-15246.2483359,0.0001792,2]
[338495100,1726703432965,-5525.90453334,0.00018517,2]
[338495101,1726703432976,-5525.90453334,0.00018695,2]
[338495102,1726703432986,-3000.0,0.000189,2]
[338495103,1726703432997,-1474.02903686,0.000189,2]
[338495104,1726703433008,-3000.0,0.0001891,2]
[338495105,1726703433018,-803.43193214,0.0001892,2]
[338495170,1726703440384,-597.158125,0.00018145,2]
[338495171,1726703440394,-2196.56806786,0.0001892,2]
[338495172,1726703440405,-3000.0,0.0001893,2]
[338495173,1726703440414,-3000.0,0.0001894,2]
[338495174,1726703440425,-3000.0,0.0001895,2]
[338495175,1726703440435,-3000.0,0.0001896,2]
[338495176,1726703440444,-5850.0,0.0001897,2]
[338495177,1726703440454,-598.27,0.00019,2]
[338495178,1726703440464,-158.6,0.00019011,2]
[338495179,1726703440474,-5525.90453336,0.00019049,2]
[338495180,1726703440484,-151.96753221,0.00019067,2]
[338495181,1726703440495,-151.96753221,0.00019073,2]
[338495182,1726703440505,-1000.0,0.00019076,2]
[338495183,1726703440515,-158.6,0.00019076,2]
[338495184,1726703440526,-487.73322619,0.00019077,2]
[338495185,1726703440537,-151.96753221,0.00019079,2]
[338495186,1726703440547,-151.96753221,0.00019084,2]
[338495187,1726703440559,-151.96753221,0.0001909,2]
[338495188,1726703440569,-3969.04007498,0.000191,2]
[338495189,1726703440580,-3000.0,0.000191,2]
[338495190,1726703440590,-1000.0,0.000191,2]
[338495191,1726703440600,-201.0,0.0001912,2]
[338495192,1726703440611,-158.6,0.00019141,2]
[338495193,1726703440622,-763.82,0.00019141,3]
[338495194,1726703440632,-21487.3962397,0.00019151,3]
[338495195,1726703440641,-8068.91360067,0.00019151,3]
[338495196,1726703440650,-500.0,0.00019151,2]
[338495197,1726703440661,-500.0,0.00019151,2]
[338495198,1726703440671,-500.0,0.00019151,2]
[338495199,1726703440681,-350.57917763,0.00019151,2]
[338495200,1726703440691,-21487.3962397,0.00019152,3]
[338495201,1726703440702,-8068.91360067,0.00019152,3]
[338495202,1726703440711,-21487.3962397,0.00019156,3]
[338495203,1726703440721,-8068.91360067,0.00019156,3]
[338495204,1726703440730,-42543.75955984,0.00019157,3]
[338495263,1726703443250,-271.09,0.00019151,3]
[338495264,1726703443260,-431.03291946,0.00019157,3]
[338495265,1726703443269,-16137.8272013,0.00019157,3]
[338495266,1726703443278,-18848.30178038,0.00019158,3]
[338495876,1726704553629,-600.0,0.0001702,2]
[338495877,1726704553654,-148.94323925,0.00017314,2]
[338495881,1726704618623,250.22,0.00014013,2]
[338496006,1726704634528,-175.1261725,0.00017214,2]
[338496008,1726704634541,-300.0,0.00017314,2]
[338496010,1726704634552,-229.36797182,0.00017314,2]
[338496012,1726704634570,-70.63202818,0.00017314,2]
[338496013,1726704634583,-23798.034704,0.00017315,2]
[338496014,1726704634593,-494.911619,0.00017808,2]
[338496015,1726704634605,-175.1261725,0.00018056,2]
[338496016,1726704634616,-153.0,0.00018378,2]
[338496017,1726704634628,-153.0,0.00018378,2]
[338496018,1726704634640,-63.14409732,0.000184,2]
[338496129,1726704639028,-89.85590268,0.000184,2]
[338496131,1726704639038,-153.0,0.000184,2]
[338496133,1726704639047,-1289.77540727,0.000188,2]
[338496135,1726704639058,-153.0,0.000188,2]
[338496137,1726704639068,-153.0,0.000188,2]
[338496139,1726704639078,-175.1261725,0.00018897,2]
[338496141,1726704639088,-2541.45027758,0.000189,2]
[338496231,1726704640067,-2770.87771942,0.000189,2]
[338496233,1726704640078,-153.0,0.000189,2]
[338496235,1726704640088,-1000.0,0.00018917,2]
[338496237,1726704640099,-1000.0,0.00018927,2]
[338496239,1726704640109,-1000.0,0.00018933,2]
[338496241,1726704640119,-1000.0,0.00018938,2]
[338496243,1726704640129,-1000.0,0.00018939,2]
[338496245,1726704640139,-1000.0,0.00018947,2]
[338496248,1726704640150,-1000.0,0.00018961,2]
[338496250,1726704640161,-1000.0,0.00018981,2]
[338496252,1726704640173,-1000.0,0.00018997,2]
[338496255,1726704640185,-28943.993835,0.00019,2]
[338496258,1726704640195,-208.739459,0.00019,2]
[338496260,1726704640206,-153.0,0.00019,2]
[338496263,1726704640218,-153.0,0.00019,2]
[338496265,1726704640231,-306.0,0.00019,2]
[338496267,1726704640241,-182.3113171,0.00019,2]
[338496269,1726704640252,-153.0,0.00019,2]
[338496271,1726704640262,-153.0,0.00019,2]
[338496273,1726704640272,-208.739459,0.00019,2]
[338496275,1726704640281,-153.0,0.00019,2]
[338496277,1726704640291,-170.2,0.0001901,2]
[338496279,1726704640301,-1000.0,0.00019013,2]
[338496281,1726704640311,-1000.0,0.00019027,2]
[338496283,1726704640320,-1000.0,0.00019032,2]
[338496285,1726704640330,-1000.0,0.00019039,2]
[338496287,1726704640340,-420.0,0.00019046,2]
[338496290,1726704640351,-1000.0,0.00019049,2]
[338496291,1726704640361,-438.95990358,0.00019056,2]
[338496294,1726704640373,-1000.0,0.00019062,2]
[338496296,1726704640383,-1000.0,0.00019063,2]
[338496298,1726704640394,-170.2,0.00019075,2]
[338496300,1726704640404,-19715.784,0.00019079,2]
[338496302,1726704640414,-1000.0,0.0001909,2]
[338496304,1726704640426,-1000.0,0.00019092,2]
[338496306,1726704640436,-594.877994,0.000191,2]
[338496308,1726704640446,-153.0,0.000191,2]
[338496310,1726704640456,-153.0,0.000191,2]
[338496312,1726704640465,-153.0,0.000191,2]
[338496315,1726704640478,-306.5382873,0.000191,2]
[338496316,1726704640489,-300.406451,0.000191,8]
[338496318,1726704640499,-306.0,0.000191,2]
[338496321,1726704640510,-153.0,0.000191,2]
[338496322,1726704640519,-153.0,0.000191,2]
[338496324,1726704640529,-224.5870525,0.000191,2]
[338496326,1726704640539,-421.0214701,0.000191,2]
[338496329,1726704640549,-517.47,0.00019105,3]
[338496331,1726704640559,-500.0,0.00019114,2]
[338496333,1726704640571,-500.0,0.00019114,2]
[338496335,1726704640582,-500.0,0.00019114,2]
[338496337,1726704640593,-500.0,0.00019114,2]
[338496339,1726704640602,-500.0,0.00019114,2]
[338496363,1726704640845,-500.0,0.00019114,2]
[338496365,1726704640856,-500.0,0.00019114,2]
[338496367,1726704640866,-500.0,0.00019114,2]
[338496369,1726704640876,-500.0,0.00019114,2]
[338496371,1726704640887,-500.0,0.00019114,2]
[338496374,1726704640898,-500.0,0.00019114,2]
[338496376,1726704640909,-500.0,0.00019114,2]
[338496378,1726704640919,-500.0,0.00019114,2]
[338496380,1726704640930,-500.0,0.00019114,2]
[338496382,1726704640940,-500.0,0.00019114,2]
[338496384,1726704640950,-500.0,0.00019114,2]
[338496386,1726704640959,-237.12,0.00019114,2]
[338496388,1726704640969,-500.0,0.00019114,2]
[338496390,1726704640980,-500.0,0.00019114,2]
[338496392,1726704640990,-500.0,0.00019114,2]
[338496394,1726704640999,-500.0,0.00019114,2]
[338496396,1726704641008,-500.0,0.00019114,2]
[338496398,1726704641018,-500.0,0.00019114,2]
[338496400,1726704641027,-500.0,0.00019114,2]
[338496402,1726704641036,-172.48,0.00019115,3]
[338496404,1726704641045,-34142.5222448,0.00019115,3]
[338496406,1726704641055,-14235.9880659,0.00019115,3]
[338496408,1726704641064,-34142.5222448,0.00019117,3]
[338496410,1726704641074,-14235.9880659,0.00019117,3]
[338496412,1726704641083,-5162.88208851,0.00019118,2]
[338496414,1726704641093,-22853.54222632,0.00019118,5]
[338496416,1726704641104,-34142.5222448,0.00019118,3]
[338496418,1726704641113,-14235.9880659,0.00019118,3]
[338496420,1726704641122,-201.0,0.0001912,2]
[338496422,1726704641131,-34142.5222448,0.00019125,3]
[338496424,1726704641141,-14235.9880659,0.00019125,3]
[338496426,1726704641150,-1006.51173021,0.00019126,2]
[338496428,1726704641159,-34142.5222448,0.00019126,3]
[338496430,1726704641169,-14235.9880659,0.00019126,3]
[338496432,1726704641179,-34142.5222448,0.00019137,3]
[338496434,1726704641189,-14235.9880659,0.00019137,3]
[338496436,1726704641198,-170.2,0.0001914,2]
[338496438,1726704641207,-34142.5222448,0.00019141,3]
[338496440,1726704641217,-14235.9880659,0.00019141,3]
[338496442,1726704641229,-347.53351531,0.00019145,2]
[338496444,1726704641238,-500.0,0.00019145,2]
[338496446,1726704641247,-500.0,0.00019145,2]
[338496448,1726704641258,-500.0,0.00019145,2]
[338496450,1726704641268,-500.0,0.00019145,2]
[338496452,1726704641277,-169.07900074,0.00019145,2]
[338496454,1726704641288,-500.0,0.00019145,2]
[338496456,1726704641297,-500.0,0.00019145,2]
[338496459,1726704641307,-500.0,0.00019145,2]
[338496461,1726704641317,-500.0,0.00019145,2]
[338496463,1726704641327,-500.0,0.00019145,2]
[338496465,1726704641338,-500.0,0.00019145,2]
[338496467,1726704641348,-500.0,0.00019145,2]
[338496469,1726704641359,-585.65351943,0.00019145,2]
[338496471,1726704641370,-500.0,0.00019145,2]
[338496473,1726704641379,-500.0,0.00019145,2]
[338496475,1726704641388,-500.0,0.00019145,2]
[338496477,1726704641399,-429.51434932,0.00019145,2]
[338496479,1726704641409,-157.00215838,0.00019146,2]
[338496481,1726704641419,-34142.5222448,0.00019146,3]
[338496483,1726704641429,-14235.9880659,0.00019146,3]
[338496485,1726704641440,-14235.9880659,0.00019147,3]
[338496487,1726704641450,-1000.0,0.00019147,2]
[338496489,1726704641462,-802.347407,0.00019147,2]
[338496491,1726704641472,-802.347407,0.00019147,2]
[338496493,1726704641485,-14235.9880659,0.00019147,3]
[338496495,1726704641494,-151.0,0.00019151,2]
[338496497,1726704641503,-1212.19329,0.00019151,2]
[338496499,1726704641513,-1212.19329,0.00019151,2]
[338496501,1726704641522,-151.0,0.00019151,2]
[338496503,1726704641532,-151.0,0.00019151,2]
[338496505,1726704641541,-1102.418831,0.00019151,2]
[338496507,1726704641550,-1102.418831,0.00019151,2]
[338496509,1726704641560,-405.950711,0.00019151,2]
[338496511,1726704641569,-151.0,0.00019151,2]
[338496513,1726704641578,-405.950711,0.00019151,2]
[338496515,1726704641588,-754.185137,0.00019151,2]
[338496517,1726704641597,-853.046061,0.00019151,2]
[338496519,1726704641607,-754.185137,0.00019151,2]
[338496521,1726704641618,-853.046061,0.00019151,2]
[338496523,1726704641628,-803.079468,0.00019151,2]
[338496525,1726704641639,-803.079468,0.00019151,2]
[338496528,1726704641650,-2478.879519,0.00019151,2]
[338496530,1726704641660,-2478.879519,0.00019151,2]
[338496531,1726704641670,-151.0,0.00019151,2]
[338496534,1726704641680,-252.975266,0.00019151,2]
[338496536,1726704641689,-151.0,0.00019151,2]
[338496538,1726704641698,-151.0,0.00019151,2]
[338496540,1726704641707,-425.669141,0.00019151,2]
[338496542,1726704641716,-425.669141,0.00019151,2]
[338496544,1726704641727,-170.908554,0.00019151,2]
[338496546,1726704641736,-1992.505428,0.00019151,2]
[338496548,1726704641746,-1992.505428,0.00019151,2]
[338496549,1726704641755,-243.48327,0.00019151,2]
[338496551,1726704641764,-243.48327,0.00019151,2]
[338496553,1726704641774,-14235.9880659,0.00019151,3]
[338496556,1726704641784,-1289.77540722,0.00019153,2]
[338496558,1726704641794,-803.079468,0.00019156,2]
[338496560,1726704641803,-803.079468,0.00019156,2]
[338496562,1726704641815,-2478.879519,0.00019156,2]
[338496564,1726704641825,-2478.879519,0.00019156,2]
[338496566,1726704641836,-151.0,0.00019156,2]
[338496568,1726704641846,-299.314941,0.00019156,2]
[338496570,1726704641856,-151.0,0.00019156,2]
[338496572,1726704641865,-425.669141,0.00019156,2]
[338496574,1726704641874,-425.669141,0.00019156,2]
[338496576,1726704641884,-1992.505428,0.00019156,2]
[338496578,1726704641893,-1992.505428,0.00019156,2]
[338496580,1726704641902,-243.48327,0.00019156,2]
[338496582,1726704641912,-243.48327,0.00019156,2]
[338496584,1726704641925,-184.377578,0.00019157,2]
[338496586,1726704641936,-151.953278,0.00019157,2]
[338496588,1726704641946,-151.0,0.00019157,2]
[338496590,1726704641957,-151.0,0.00019157,2]
[338496593,1726704641969,-151.0,0.00019157,2]
[338496595,1726704641983,-729.126428,0.00019157,2]
[338496597,1726704641996,-1212.19329,0.00019157,2]
[338496599,1726704642005,-729.126428,0.00019157,2]
[338496601,1726704642015,-1212.19329,0.00019157,2]
[338496603,1726704642025,-151.0,0.00019157,2]
[338496605,1726704642037,-151.0,0.00019157,2]
[338496607,1726704642046,-197.173141,0.00019157,2]
[338496609,1726704642056,-151.0,0.00019157,2]
[338496611,1726704642066,-1102.418831,0.00019157,2]
[338496613,1726704642075,-1102.418831,0.00019157,2]
[338496615,1726704642084,-405.950711,0.00019157,2]
[338496617,1726704642095,-151.0,0.00019157,2]
[338496620,1726704642105,-405.950711,0.00019157,2]
[338496622,1726704642116,-754.185137,0.00019157,2]
[338496624,1726704642126,-853.046061,0.00019157,2]
[338496626,1726704642135,-754.185137,0.00019157,2]
[338496628,1726704642145,-853.046061,0.00019157,2]
[338496630,1726704642156,-803.079468,0.00019157,2]
[338496632,1726704642166,-803.079468,0.00019157,2]
[338496634,1726704642177,-2478.879519,0.00019157,2]
[338496637,1726704642188,-2478.879519,0.00019157,2]
[338496639,1726704642199,-151.0,0.00019157,2]
[338496641,1726704642211,-151.0,0.00019157,2]
[338496642,1726704642221,-425.669141,0.00019157,2]
[338496643,1726704642233,-425.669141,0.00019157,2]
[338496644,1726704642242,-151.0,0.00019157,2]
[338496645,1726704642250,-1992.505428,0.00019157,2]
[338496646,1726704642259,-151.0,0.00019157,2]
[338496647,1726704642269,-1992.505428,0.00019157,2]
[338496648,1726704642278,-151.0,0.00019157,2]
[338496649,1726704642288,-151.0,0.00019157,2]
[338496650,1726704642297,-830.286676,0.00019157,2]
[338496651,1726704642307,-243.48327,0.00019157,2]
[338496652,1726704642316,-243.48327,0.00019157,2]
[338496653,1726704642326,-151.0,0.00019157,2]
[338496654,1726704642336,-830.286676,0.00019157,2]
[338496655,1726704642347,-453.673743,0.00019157,2]
[338496656,1726704642358,-453.673743,0.00019157,2]
[338496657,1726704642369,-151.0,0.00019157,2]
[338496658,1726704642379,-151.0,0.00019157,2]
[338496659,1726704642390,-279.336946,0.00019157,2]
[338496660,1726704642401,-279.336946,0.00019157,2]
[338496661,1726704642410,-890.192319,0.00019157,2]
[338496662,1726704642420,-251.227336,0.00019157,2]
[338496663,1726704642429,-251.227336,0.00019157,2]
[338496664,1726704642438,-28471.9761318,0.00019157,3]
[338496665,1726704642446,-200.28054243,0.00019158,3]
[338496667,1726704642455,-151.0,0.00019161,2]
[338496668,1726704642464,-151.0,0.00019161,2]
[338496670,1726704642473,-902.52581,0.00019161,2]
[338496671,1726704642493,-902.52581,0.00019161,2]
[338496673,1726704642502,-151.0,0.00019161,2]
[338496675,1726704642512,-151.0,0.00019161,2]
[338496677,1726704642521,-151.0,0.00019161,2]
[338496679,1726704642530,-151.0,0.00019161,2]
[338496682,1726704642539,-151.0,0.00019161,2]
[338496684,1726704642549,-152.097405,0.00019161,2]
[338496686,1726704642559,-152.097405,0.00019161,2]
[338496688,1726704642568,-151.693322,0.00019161,2]
[338496690,1726704642577,-806.854839,0.00019161,2]
[338496692,1726704642586,-806.854839,0.00019161,2]
[338496695,1726704642595,-185.297964,0.00019161,2]
[338496698,1726704642605,-185.297964,0.00019161,2]
[338496700,1726704642613,-322.069078,0.00019161,2]
[338496703,1726704642623,-151.0,0.00019161,2]
[338496705,1726704642634,-151.0,0.00019161,2]
[338496707,1726704642644,-322.069078,0.00019161,2]
[338496710,1726704642654,-802.347407,0.00019161,2]
[338496714,1726704642663,-802.347407,0.00019161,2]
[338496717,1726704642673,-14872.80572789,0.00019161,2]
[338496720,1726704642687,-26235.62760633,0.00019161,2]
[338496723,1726704642696,-151.0,0.00019165,2]
[338496726,1726704642706,-204.455593,0.00019165,2]
[338496729,1726704642716,-204.455593,0.00019165,2]
[338496732,1726704642730,-14235.9880659,0.00019166,3]
[338496735,1726704642740,-5589.91847517,0.00019166,3]
[338496795,1726704643135,-151.0,0.00019147,2]
[338496797,1726704643145,-890.192319,0.00019157,2]
[338496799,1726704643155,-151.0,0.00019161,2]
[338496801,1726704643165,-8646.06959073,0.00019166,3]
[338496803,1726704643175,-151.0,0.00019166,2]
[338496805,1726704643185,-151.0,0.00019166,2]
[338496807,1726704643195,-151.0,0.00019166,2]
[338496809,1726704643204,-151.0,0.00019166,2]
[338496811,1726704643213,-25245.98999141,0.00019167,3]
[338497093,1726704646091,-151.0,0.00019147,2]
[338497095,1726704646102,-151.0,0.00019161,2]
[338497097,1726704646114,-31697.96227209,0.00019167,3]
[338497099,1726704646125,-267.802018,0.00019167,2]
[338497101,1726704646137,-204.455593,0.00019167,2]
[338497104,1726704646147,-204.455593,0.00019167,2]
[338497106,1726704646156,-151.0,0.00019167,2]
[338497108,1726704646165,-902.52581,0.00019167,2]
[338497110,1726704646175,-902.52581,0.00019167,2]
[338497112,1726704646185,-151.0,0.00019167,2]
[338497114,1726704646194,-151.0,0.00019167,2]
[338497116,1726704646204,-151.0,0.00019167,2]
[338497118,1726704646213,-151.0,0.00019167,2]
[338497120,1726704646223,-152.097405,0.00019167,2]
[338497122,1726704646233,-152.097405,0.00019167,2]
[338497124,1726704646242,-10000.0,0.00019167,2]
[338497126,1726704646252,-10000.0,0.00019167,2]
[338497128,1726704646260,-10000.0,0.00019167,2]
[338497130,1726704646270,-3323.73657089,0.00019167,2]
[338497132,1726704646279,-806.854839,0.00019167,2]
[338497134,1726704646290,-806.854839,0.00019167,2]
[338497136,1726704646299,-185.297964,0.00019167,2]
[338497138,1726704646309,-185.297964,0.00019167,2]
[338497140,1726704646318,-322.069078,0.00019167,2]
[338497142,1726704646328,-151.0,0.00019167,2]
[338497144,1726704646337,-151.0,0.00019167,2]
[338497146,1726704646348,-322.069078,0.00019167,2]
[338497148,1726704646359,-151.0,0.00019167,2]
[338497150,1726704646369,-151.0,0.00019167,2]
[338497152,1726704646378,-151.0,0.00019167,2]
[338497154,1726704646390,-729.126428,0.00019167,2]
[338497156,1726704646401,-1212.19329,0.00019167,2]
[338497159,1726704646412,-729.126428,0.00019167,2]
[338497161,1726704646422,-1212.19329,0.00019167,2]
[338497163,1726704646434,-151.0,0.00019167,2]
[338497165,1726704646445,-152.386018,0.00019167,2]
[338497167,1726704646455,-151.0,0.00019167,2]
[338497169,1726704646466,-1102.418831,0.00019167,2]
[338497171,1726704646475,-1102.418831,0.00019167,2]
[338497174,1726704646489,-405.950711,0.00019167,2]
[338497176,1726704646499,-151.0,0.00019167,2]
[338497178,1726704646509,-405.950711,0.00019167,2]
[338497180,1726704646519,-754.185137,0.00019167,2]
[338497182,1726704646530,-853.046061,0.00019167,2]
[338497184,1726704646539,-754.185137,0.00019167,2]
[338497186,1726704646549,-853.046061,0.00019167,2]
[338497188,1726704646558,-803.079468,0.00019167,2]
[338497190,1726704646568,-803.079468,0.00019167,2]
[338497192,1726704646578,-2478.879519,0.00019167,2]
[338497194,1726704646589,-2478.879519,0.00019167,2]
[338497196,1726704646601,-151.0,0.00019167,2]
[338497198,1726704646611,-802.347407,0.00019167,2]
[338497200,1726704646621,-802.347407,0.00019167,2]
[338497203,1726704646631,-151.0,0.00019167,2]
[338497205,1726704646641,-151.0,0.00019167,2]
[338497207,1726704646652,-259.544407,0.00019168,2]
[338497209,1726704646663,-151.0,0.00019168,2]
[338497211,1726704646673,-151.0,0.00019168,2]
[338497213,1726704646683,-151.0,0.00019168,2]
[338497215,1726704646694,-14235.9880659,0.00019168,3]
[338497217,1726704646703,-1000.0,0.0001917,2]
[338497220,1726704646715,-500.48891412,0.00019173,2]
[338497222,1726704646724,-500.0,0.00019173,2]
[338497224,1726704646736,-500.0,0.00019173,2]
[338497226,1726704646747,-500.38961539,0.00019173,2]
[338497228,1726704646758,-500.92865773,0.00019173,2]
[338497230,1726704646769,-500.0,0.00019173,2]
[338497232,1726704646779,-159.9027995,0.00019173,2]
[338497234,1726704646790,-500.35776297,0.00019173,2]
[338497236,1726704646800,-500.0,0.00019173,2]
[338497238,1726704646809,-360.07202762,0.00019173,2]
[338497241,1726704646819,-500.0,0.00019173,2]
[338497243,1726704646829,-500.0,0.00019173,2]
[338497245,1726704646842,-500.0,0.00019173,2]
[338497247,1726704646852,-500.0,0.00019173,2]
[338497249,1726704646861,-500.0,0.00019173,2]
[338497251,1726704646870,-160.11335754,0.00019173,2]
[338497253,1726704646880,-160.04022025,0.00019173,2]
[338497255,1726704646892,-200.91528279,0.00019173,2]
[338497257,1726704646902,-522.25634702,0.00019173,2]
[338497259,1726704646914,-500.49163467,0.00019173,2]
[338497261,1726704646924,-500.0,0.00019173,2]
[338497263,1726704646936,-500.0,0.00019173,2]
[338497266,1726704646946,-500.0,0.00019173,2]
[338497268,1726704646956,-500.0,0.00019173,2]
[338497270,1726704646967,-500.0,0.00019173,2]
[338497272,1726704646976,-500.0,0.00019173,2]
[338497274,1726704646987,-500.39214651,0.00019173,2]
[338497276,1726704646997,-500.0,0.00019173,2]
[338497278,1726704647008,-254.69698023,0.00019173,2]
[338497280,1726704647019,-500.0,0.00019173,2]
[338497282,1726704647029,-251.00193753,0.00019173,2]
[338497284,1726704647040,-500.0,0.00019173,2]
[338497286,1726704647050,-500.0,0.00019173,2]
[338497288,1726704647061,-151.0,0.00019173,2]
[338497290,1726704647071,-151.0,0.00019173,2]
[338497293,1726704647081,-151.0,0.00019173,2]
[338497294,1726704647090,-151.0,0.00019173,2]
[338497296,1726704647099,-729.126428,0.00019173,2]
[338497298,1726704647108,-729.126428,0.00019173,2]
[338497300,1726704647117,-151.0,0.00019173,2]
[338497302,1726704647126,-151.0,0.00019173,2]
[338497305,1726704647137,-151.0,0.00019173,2]
[338497307,1726704647146,-425.669141,0.00019173,2]
[338497309,1726704647155,-425.669141,0.00019173,2]
[338497311,1726704647165,-151.0,0.00019173,2]
[338497313,1726704647175,-1992.505428,0.00019173,2]
[338497315,1726704647184,-151.0,0.00019173,2]
[338497317,1726704647194,-1992.505428,0.00019173,2]
[338497319,1726704647206,-151.0,0.00019173,2]
[338497321,1726704647216,-151.0,0.00019173,2]
[338497323,1726704647230,-830.286676,0.00019173,2]
[338497325,1726704647240,-243.48327,0.00019173,2]
[338497327,1726704647249,-243.48327,0.00019173,2]
[338497329,1726704647258,-151.0,0.00019173,2]
[338497331,1726704647268,-830.286676,0.00019173,2]
[338497333,1726704647279,-453.673743,0.00019173,2]
[338497335,1726704647289,-453.673743,0.00019173,2]
[338497338,1726704647299,-151.0,0.00019173,2]
[338497340,1726704647309,-151.0,0.00019173,2]
[338497342,1726704647319,-279.336946,0.00019173,2]
[338497344,1726704647330,-279.336946,0.00019173,2]
[338497346,1726704647341,-890.192319,0.00019173,2]
[338497348,1726704647351,-251.227336,0.00019173,2]
[338497350,1726704647361,-251.227336,0.00019173,2]
[338497352,1726704647371,-890.192319,0.00019173,2]
[338497354,1726704647380,-43947.28182536,0.00019176,2]
[338497356,1726704647389,-204.455593,0.00019176,2]
[338497358,1726704647398,-204.455593,0.00019176,2]
[338497360,1726704647408,-151.0,0.00019176,2]
[338497362,1726704647417,-151.0,0.00019176,2]
[338497364,1726704647426,-151.0,0.00019176,2]
[338497366,1726704647435,-902.52581,0.00019176,2]
[338497368,1726704647444,-902.52581,0.00019176,2]
[338497370,1726704647454,-151.0,0.00019176,2]
[338497372,1726704647463,-151.0,0.00019176,2]
[338497374,1726704647472,-151.0,0.00019176,2]
[338497376,1726704647485,-151.0,0.00019176,2]
[338497378,1726704647494,-152.097405,0.00019176,2]
[338497380,1726704647503,-152.097405,0.00019176,2]
[338497383,1726704647514,-806.854839,0.00019176,2]
[338497385,1726704647525,-806.854839,0.00019176,2]
[338497387,1726704647535,-185.297964,0.00019176,2]
[338497389,1726704647546,-185.297964,0.00019176,2]
[338497391,1726704647557,-322.069078,0.00019176,2]
[338497410,1726704647726,-322.069078,0.00019176,2]
[338497413,1726704647740,-151.0,0.00019176,2]
[338497415,1726704647751,-1212.19329,0.00019176,2]
[338497417,1726704647762,-1212.19329,0.00019176,2]
[338497419,1726704647772,-1102.418831,0.00019176,2]
[338497422,1726704647783,-1102.418831,0.00019176,2]
[338497424,1726704647794,-405.950711,0.00019176,2]
[338497426,1726704647803,-151.0,0.00019176,2]
[338497428,1726704647813,-405.950711,0.00019176,2]
[338497430,1726704647823,-754.185137,0.00019176,2]
[338497432,1726704647832,-853.046061,0.00019176,2]
[338497434,1726704647847,-754.185137,0.00019176,2]
[338497436,1726704647857,-853.046061,0.00019176,2]
[338497438,1726704647866,-802.347407,0.00019176,2]
[338497440,1726704647878,-802.347407,0.00019176,2]
[338497442,1726704647890,-151.0,0.00019176,2]
[338497444,1726704647899,-151.0,0.00019176,2]
[338497446,1726704647910,-29928.05686984,0.00019177,5]
[338497448,1726704647921,-14729.74895465,0.00019177,2]
[338499475,1726704975492,-500.0,0.00016067,2]
[338499476,1726704975516,-175.12617249,0.00016813,2]
[338499477,1726704975540,-500.0,0.00016913,2]
[338499478,1726704975830,-196.086629,0.00017269,2]
[338499479,1726704975855,-500.0,0.00017759,2]
[338499480,1726704975879,-484.98078,0.00017808,2]
[338499481,1726704975903,-300.0,0.00017853,2]
[338499482,1726704975929,-300.0,0.00017853,2]
[338499483,1726704975952,-1043.80641851,0.00017854,2]
[338499507,1726705755221,-251.76476016,0.000172,2]